[Event "Croatian Team Cup Final 2022"]
[Site "Vodice"]
[Date "2022.05.22"]
[Round "6.12"]
[White "Brumen, Dinko"]
[Black "Srbis, Jurica"]
[Result "1/2-1/2"]
[ECO "E21"]
[WhiteElo "2313"]
[BlackElo "2451"]
[Annotator "TA"]
[PlyCount "174"]
[EventDate "2022.05.18"]
[EventType "team-tourn"]
[EventCountry "CRO"]
[SourceTitle "playchess.com"]
[Source "ChessBase"]
[SourceQuality "1"]
[TimeControl "40/5400+30:1800+30"]

{[%evp 18,174,16,-2,21,14,28,-12,8,-20,-27,-43,-47,-41,-29,-42,-28,-49,-56,-51,-34,-81,-38,-90,-84,-125,-129,-184,-172,-179,-177,-177,-160,-369,-349,-384,-164,-166,-174,-153,-19,-40,0,-35,-43,-83,-88,-89,-94,-95,-99,-116,-101,-103,0,-6,-8,-8,-8,-8,0,-10,-10,-119,-129,-149,-150,-133,-14,-158,-183,-192,-91,-58,-8,-8,-8,-103,-12,-44,-54,-68,-69,-67,-19,-128,-66,-66,-66,-62,-66,-66,-127,-391,-268,-519,-559,-1097,-1087,-29964,-1038,-959,-1008,-927,-895,-793,-771,-607,0,-227,-172,-146,-164,-160,-148,-361,-80,-147,-93,-80,0,0,0,0,0,-12,-16,-16,0,-234,-120,-89,0,-219,-227,-217,-231,-211,0,0,0,0,0,0,0,0,0,0,0,0,0,0,0,0,0,0,0,0,0]} 1. Nf3 {[%emt 0:00:03]} Nf6 {[%emt 0:01:04]} 2. c4 {[%emt 0:00:11]} e6 {[%emt 0:01:00]} 3. Nc3 {[%emt 0:00:24]} Bb4 {[%emt 0:00:10]} 4. g3 {[%emt 0:00:47]} b6 {[%emt 0:03:25]} 5. Bg2 {[%emt 0:00:51]} Bb7 {[%emt 0:00:33]} 6. O-O {[%emt 0:00:26]} Bxc3 {[%emt 0:01:39]} 7. bxc3 {[%emt 0:03:32]} O-O {[%emt 0:00:07]} 8. d4 {[%emt 0:04:56]} d6 {[%emt 0:03:59]} 9. a4 {[%emt 0:07:53]} a5 {[%emt 0:01:14]} 10. Rb1 {[%emt 0:04:32]} Be4 {[%emt 0:05:08]} 11. Rb2 {[%emt 0:00:11]} Nc6 {[%emt 0:05:38]} 12. Be3 {[%emt 0:23:23]} Qe7 {[%emt 0:03:06]} 13. Qc1 {[%emt 0:02:34]} Nd7 {[%emt 0:06:00]} 14. Rb5 {[%emt 0:05:26]} f5 {[%emt 0:11:31]} 15. Qa3 {[%emt 0:05:14]} Na7 {[%emt 0:02:36]} 16. Rb2 {[%emt 0:05:16]} Rae8 {[%emt 0:00:13]} (16... e5 {keeps more tension.} 17. c5 dxc5 18. dxc5 Kh8) 17. Ne1 {[%emt 0:05:37]} Bxg2 {[%emt 0:01:05]} 18. Nxg2 {[%emt 0:00:09]} Nc6 {[%emt 0:02:35]} 19. Nf4 {[%emt 0:07:32]} (19. Qb3 $15 {should be considered.}) 19... Nf6 {[%emt 0:04:23]} 20. c5 {[%emt 0:03:31]} (20. Ng2 $15) 20... bxc5 $1 $17 {[%emt 0:01:17]} 21. dxc5 {[%emt 0:00:56]} d5 $1 {[%emt 0:00:11]} 22. Rd1 {[%emt 0:06:37]} (22. Qa2 $17 {keeps fighting.}) 22... Ne5 $1 $19 {[%emt 0:04:25]} 23. Rb7 {[%emt 0:02:13]} Nc4 {[%emt 0:00:22]} 24. Qc1 {[%emt 0:00:12]} Qd7 {[%emt 0:06:20]} 25. Rb5 $2 {[%emt 0:02:14]} (25. Ng2 $17 {was worth a try.}) 25... c6 $1 $19 {[%emt 0:02:00]} 26. Rb3 {[%emt 0:01:21]} Rb8 {[%emt 0:04:08]} (26... e5 $142 27. Ng2 f4 28. gxf4 Qh3) 27. Rxb8 $19 {[%emt 0:01:28]} Rxb8 {[%emt 0:00:02]} 28. Nd3 {[%emt 0:00:54]} Rb3 {[%emt 0:06:37]} (28... Qe8 $17 {Strongly threatening ...e5.} 29. Qc2 Ng4) 29. Bd4 $1 $11 {[%emt 0:00:56]} Ne8 {[%emt 0:02:28]} 30. h4 {[%emt 0:02:12]} Qc7 {[%emt 0:01:13]} 31. f4 {[%emt 0:02:54]} Nf6 {[%emt 0:05:17]} 32. Ne5 {[%emt 0:01:06]} Nxe5 {[%emt 0:00:15]} 33. Bxe5 {[%emt 0:00:03]} Qe7 {[%emt 0:00:22]} 34. Bxf6 {[%emt 0:01:05]} Qxf6 {[%emt 0:03:42]} 35. Rd3 {[%emt 0:00:03]} e5 {[%emt 0:00:20]} (35... Qe7 $17 36. Qe3 Ra3) 36. fxe5 {[%emt 0:00:53]} Qxe5 {[%emt 0:00:02]} 37. Re3 {[%emt 0:00:45]} Qf6 {[%emt 0:00:09]} 38. Qc2 {[%emt 0:00:34]} Rb8 {[%emt 0:00:11]} 39. Rf3 {[%emt 0:00:30]} g6 {[%emt 0:01:57]} 40. Qd2 {[%emt 0:00:00]} (40. e4 $1 $11) 40... Qe7 $17 {[%emt 0:00:00]} 41. h5 {[%emt 0:03:33]} Qxc5+ {[%emt 0:02:37]} 42. Kg2 {[%emt 0:00:12]} Rb1 {[%emt 0:06:14]} (42... Re8 $17 {Threatens to win with ...Kg7.} 43. Kf1 Re4) 43. Rf2 {[%emt 0:00:30]} (43. Rf1 $11 Rxf1 44. Kxf1) 43... Qe7 $17 {[%emt 0:02:26]} 44. Rf4 {[%emt 0:16:19]} Rb8 {[%emt 0:02:23]} (44... gxh5 45. Rxf5 Qe4+ 46. Rf3 $11) (44... Qe5 $19 {and Black stays clearly on top.} 45. h6 Kf7) 45. c4 $17 {[%emt 0:05:31]} Rd8 {[%emt 0:03:38]} (45... Qe5 $15 46. hxg6 hxg6) 46. hxg6 $11 {[%emt 0:01:18]} hxg6 {[%emt 0:03:12]} 47. Rd4 {[%emt 0:00:13]} (47. Kf1 $11 {remains equal.}) 47... Rd7 {[%emt 0:02:12]} (47... Kf7 $1 $17 48. cxd5 Rxd5 49. Rxd5 Qe4+ 50. Kf2 Qxd5) 48. Kf1 {[%emt 0:01:43]} Qe5 {[%emt 0:01:51]} 49. Kg2 {[%emt 0:02:15]} Kf7 {[%emt 0:04:00]} ({Reject} 49... Rh7 50. cxd5 c5 51. Rf4 $11 (51. Rh4 Rxh4 52. gxh4 Kf7 $17)) 50. Kf2 {[%emt 0:02:36]} Ke6 {[%emt 0:01:42]} (50... Rb7 $15 51. cxd5 Rb3) 51. cxd5+ {[%emt 0:00:21]} (51. Rd3 $11 {keeps the balance.} Qh8 52. Qe3+ Kf7 53. cxd5 Rxd5 54. Rb3 (54. Qa7+ Kf6 $15)) 51... Rxd5 $17 {[%emt 0:00:55]} 52. Rxd5 {[%emt 0:00:17]} Qxd5 {[%emt 0:00:06]} 53. Qc3 {[%emt 0:01:38]} g5 {[%emt 0:01:51]} 54. Qg7 {[%emt 0:00:51]} g4 {[%emt 0:00:42]} 55. Qg8+ $2 {[%emt 0:00:36][%mdl 8192]} (55. Qc3 $17 {is a better defense.}) 55... Ke5 $19 {[%emt 0:00:32]} 56. Qb8+ $2 {[%emt 0:00:24]} (56. Qg7+ {might work better.} Ke4 57. Qc7) 56... Kd4 $19 {[%emt 0:00:35]} 57. Ke1 {[%emt 0:00:48]} Kc3 {[%emt 0:00:26]} 58. Qb6 {[%emt 0:00:20]} Kc4 {[%emt 0:00:30]} (58... Qd2+ $142 59. Kf1 Qd1+ 60. Kg2 Qxe2+ 61. Kg1 Qd1+ 62. Kg2 Qd2+ 63. Kf1 Qc1+ 64. Ke2 Qb2+ 65. Qxb2+ Kxb2 66. Ke3 c5 67. Ke2 Ka3 68. Ke3 Kxa4 69. Kf4 c4 70. Kg5 Kb4 71. Kh5 c3 72. Kh6 a4 73. Kg7 a3 74. Kg6 c2 75. Kxf5 c1=Q 76. Kxg4 a2 77. Kf5 a1=Q 78. g4 Qf1+ 79. Ke6 Qff6+ 80. Kd7 Qa7+ 81. Ke8 Qh8#) 59. Qb7 {[%emt 0:00:34]} Qc5 {[%emt 0:02:11]} 60. Kf1 {[%emt 0:00:22]} Kc3 {[%emt 0:01:01]} 61. Qb1 {[%emt 0:00:04]} Qd5 {[%emt 0:00:10]} 62. Kf2 {[%emt 0:01:06]} Qc5+ $2 {[%emt 0:01:17]} (62... c5 63. Kg1 c4) 63. Kf1 $1 $19 {[%emt 0:00:16]} Kd4 {[%emt 0:02:45]} 64. Qd3+ {[%emt 0:00:11]} Ke5 {[%emt 0:00:01]} 65. Qd8 {[%emt 0:00:53]} Qd5 $1 {[%emt 0:01:05]} 66. Qc7+ $2 {[%emt 0:00:12]} (66. Qh8+ $17 {was necessary.} Ke4 67. Qa1) 66... Kf6 $2 {[%emt 0:00:18]} (66... Kd4 $1 $19 {has better winning chances.} 67. Qg7+ Kc4) 67. Qf4 {[%emt 0:00:50]} (67. Ke1 $142) 67... Kg6 {[%emt 0:00:42]} (67... Ke6 $142 {aiming for ...Qh1+.} 68. Qh6+ Kd7) 68. Ke1 {[%emt 0:00:28]} c5 {[%emt 0:00:23]} (68... Kg7 $17) 69. Qc7 $11 {[%emt 0:00:32]} c4 {[%emt 0:01:12]} 70. Qb6+ {[%emt 0:00:10]} Kf7 {[%emt 0:00:31]} 71. Kf2 {[%emt 0:00:21]} Ke7 {[%emt 0:00:52]} 72. Qc7+ {[%emt 0:00:29]} Ke6 {[%emt 0:00:01]} 73. Qb6+ $2 {[%emt 0:00:15]} (73. Ke1 $11 {and White has nothing to worry.}) 73... Kd7 {[%emt 0:00:24]} (73... Ke5 $19 {...Qd4+ is the strong threat.} 74. Ke1 f4 75. Qb2+ Kf5) 74. Qa7+ $17 {[%emt 0:00:46]} Ke6 {[%emt 0:01:26]} (74... Kc8 $1 $17 {Hoping for ...c3.} 75. Qa6+ Kd7 76. Qa7+ Ke6) 75. Qb6+ $19 {[%emt 0:00:11] [#]} Ke5 $1 {[%emt 0:00:17]} 76. Qe3+ {[%emt 0:00:50]} Kd6 {[%emt 0:00:35]} 77. Qb6+ {[%emt 0:00:28] [#]} Ke7 $2 {[%emt 0:00:06]} (77... Qc6 $1 $19 {[%cal Rc6b6]} 78. Qd8+ Ke6 79. Qg8+ Ke5 80. Qh8+ Kd5 81. Qd8+ Qd6 82. Qa8+ Ke6 83. Qe8+ Kf6 84. Qh8+ Ke7 85. Qh7+ (85. Qg7+ Ke6 $17) 85... Ke6 86. Qh6+ Kd7 87. Qg7+ (87. Qh7+ $2 Kc6 $19) 87... Ke6 88. Qh6+ Ke7 89. Qh7+ Ke6 90. Qh6+) 78. Qc7+ $11 {[%emt 0:00:26]} Kf6 {[%emt 0:00:11]} 79. Qb6+ {[%emt 0:00:22]} Kg5 {[%emt 0:00:41]} 80. Qe3+ {[%emt 0:00:14]} Kf6 {[%emt 0:01:05]} 81. Qb6+ {[%emt 0:00:14]} Kg7 {[%emt 0:00:19]} 82. Qc7+ {[%emt 0:00:19]} Kg6 {[%emt 0:00:00]} 83. Qb6+ {[%emt 0:00:24]} Kh5 {[%emt 0:00:07]} 84. Qa7 {[%emt 0:00:34]} Kh6 {[%emt 0:00:45]} 85. Qb6+ {[%emt 0:00:11]} Kg7 {[%emt 0:00:31]} 86. Qc7+ {[%emt 0:00:09]} Kf8 {[%emt 0:00:09]} 87. Qb8+ {[%emt 0:00:24]} Ke7 {[%emt 0:00:09]} 1/2-1/2

[Event "Croatian Team Cup Final 2022"]
[Site "Vodice"]
[Date "2022.05.22"]
[Round "6.13"]
[White "Lalic, Bogdan"]
[Black "Jakic, Ivan"]
[Result "1/2-1/2"]
[ECO "E08"]
[WhiteElo "2411"]
[BlackElo "2350"]
[Annotator "TA"]
[PlyCount "40"]
[EventDate "2022.05.18"]
[EventType "team-tourn"]
[EventCountry "CRO"]
[SourceTitle "playchess.com"]
[Source "ChessBase"]
[SourceQuality "1"]
[TimeControl "40/5400+30:1800+30"]

{[%evp 20,22,23,-18,25]} 1. d4 {[%emt 0:04:18]} d5 {[%emt 0:00:04]} 2. c4 {[%emt 0:00:09]} c6 {[%emt 0:00:02]} 3. Nf3 {[%emt 0:00:55]} Nf6 {[%emt 0:00:08]} 4. Qc2 {[%emt 0:00:07]} e6 {[%emt 0:02:21]} 5. g3 {[%emt 0:01:14]} Nbd7 {[%emt 0:00:23]} 6. Bg2 {[%emt 0:00:12]} Be7 {[%emt 0:00:05]} 7. O-O {[%emt 0:00:14]} O-O {[%emt 0:00:07]} 8. Rd1 {[%emt 0:01:22]} b6 {[%emt 0:00:24]} 9. Bf4 {[%emt 0:00:43]} Nh5 {[%emt 0:04:38]} 10. Bc1 {[%emt 0:02:00]} Nhf6 {[%emt 0:00:10]} 11. Nc3 {[%emt 0:00:57] 11.e4 is setting a new trend.} Bb7 {[%emt 0:00:43] [#] A rather calm draw. E08: Closed Catalan: Main Line: 7 Qc2.} {Predecessor:} 12. b3 $146 Rc8 13. Bb2 Re8 14. e4 Nxe4 15. Nxe4 dxe4 16. Qxe4 Qc7 17. Qc2 Rcd8 18. Rac1 c5 19. d5 exd5 20. cxd5 Bf6 {½-½ (51) Ding,L (2791)-Dubov,D (2699) chess24.com INT 2020} 1/2-1/2

[Event "Croatian Team Cup Final 2022"]
[Site "Vodice"]
[Date "2022.05.22"]
[Round "6.14"]
[White "Ivic, Mateo"]
[Black "Zaja, Ivan"]
[Result "1/2-1/2"]
[ECO "B32"]
[WhiteElo "2187"]
[BlackElo "2449"]
[Annotator "TA"]
[PlyCount "82"]
[EventDate "2022.05.18"]
[EventType "team-tourn"]
[EventCountry "CRO"]
[SourceTitle "playchess.com"]
[Source "ChessBase"]
[SourceQuality "1"]
[TimeControl "40/5400+30:1800+30"]

{[%evp 14,82,25,33,46,35,3,0,37,41,40,33,22,30,22,9,10,15,27,22,55,53,54,10,10,3,47,62,58,62,54,64,59,23,91,86,104,83,81,83,94,89,85,77,74,28,87,76,212,211,241,145,142,29,74,62,75,74,75,65,71,71,97,100,100,104,104,104,102,0,0]} 1. e4 {[%emt 0:00:12]} c5 {[%emt 0:00:16]} 2. Nf3 {[%emt 0:00:53][%cal Bg1f3,Bf3d4,Bd4b5,Bb5a3,Ba3c4][%mdl 32]} Nc6 {[%emt 0:00:17]} 3. d4 {[%emt 0:00:10]} cxd4 {[%emt 0:00:07]} 4. Nxd4 {[%emt 0:00:18]} e5 {[%emt 0:00:15]} 5. Nb5 {[%emt 0:01:00]} d6 {[%emt 0:00:06]} 6. N1c3 {[%emt 0:00:26]} a6 {[%emt 0:00:05]} 7. Na3 {[%emt 0:00:04]} Be6 {[%emt 0:00:08]} 8. Nc4 {[%emt 0:01:36]} Rb8 {[%emt 0:01:06] B32: Sicilian: Löwenthal and Kalashnikov Variations.} 9. a4 {[%emt 0:02:11]} Nb4 {[%emt 0:14:32] 9...Nf6 is the fancy move.} 10. Nd5 {[%emt 0:17:01]} Nxd5 {[%emt 0:02:11]} (10... Bxd5 $5 11. exd5 Nf6 $14) 11. exd5 {[%emt 0:01:33]} Bf5 {[%emt 0:02:53] [#]} 12. Be2 $146 {[%emt 0:01:55]} ({Predecessor:} 12. Be3 Nf6 13. Be2 g6 14. O-O Bg7 15. Nb6 Nd7 16. a5 Nxb6 17. axb6 O-O 18. c4 {1-0 (42) Sohier,J (2253)-Arnold,K (1804) Paleochora 2020}) 12... Nf6 {[%emt 0:02:52]} 13. O-O {[%emt 0:01:41]} Be4 {[%emt 0:06:54]} 14. Bf3 {[%emt 0:02:00]} Bg6 {[%emt 0:03:10]} 15. Be3 {[%emt 0:01:29]} Qc7 {[%emt 0:09:07]} 16. b3 {[%emt 0:02:42]} b6 {[%emt 0:03:40]} 17. a5 {[%emt 0:03:31][%cal Ra5b6]} b5 {[%emt 0:00:07]} 18. Bb6 {[%emt 0:01:27]} Qc8 {[%emt 0:01:48]} 19. Ne3 {[%emt 0:01:27] White wants to play c4.} Nd7 {[%emt 0:03:30]} 20. Bg4 {[%emt 0:03:46]} Qb7 {[%emt 0:00:05]} 21. Bxd7+ {[%emt 0:00:37]} Qxd7 {[%emt 0:00:01]} 22. c4 {[%emt 0:01:06]} Be7 {[%emt 0:01:32]} 23. Rc1 {[%emt 0:01:02]} bxc4 {[%emt 0:25:59]} (23... O-O $1 $11 {keeps the balance.}) 24. Rxc4 {[%emt 0:03:40] And now f4 would win.} Qb5 {[%emt 0:05:03]} 25. Rc7 {[%emt 0:11:47] Threatens to win with Nc4.} Bd8 {[%emt 0:01:11]} 26. Rc6 {[%emt 0:14:27] Nc4 is the strong threat.} O-O {[%emt 0:04:26][%cal Rd8b6] [#]} 27. Nc4 {[%emt 0:00:39]} Be4 {[%emt 0:01:28]} 28. Rxd6 {[%emt 0:04:05]} Be7 {[%emt 0:01:59]} 29. f3 {[%emt 0:01:09]} (29. Re1 $16 Bc2 30. Qxc2 Bxd6 31. Nxd6) 29... Bf5 {[%emt 0:03:36]} (29... Bd3 $1 $11 {remains equal.} 30. Qxd3 Bxd6) 30. Rc6 $16 {[%emt 0:01:45]} Bd7 {[%emt 0:01:50]} (30... Rfe8 $16) 31. Rc7 $18 {[%emt 0:00:44]} ({Weaker is} 31. Nxe5 Bxc6 32. Nxc6 Bc5+ 33. Bxc5 Qxc5+ 34. Rf2 Rb7 $11) 31... Rfd8 {[%emt 0:03:17]} 32. Kh1 {[%emt 0:05:01]} ({Not} 32. Nxe5 Rxb6 33. Rxd7 (33. Nxd7 $2 Rh6 $19) 33... Rxd7 34. Nxd7 (34. axb6 $2 Rxd5 35. Qa1 Rxe5 $19) 34... Rd6 $11) 32... Bb4 {[%emt 0:00:54] [#]} 33. Qd3 {[%emt 0:04:44] Prevents Bf5.} ({Much worse is} 33. Nxe5 $6 Be8 34. Nc4 Rxd5 $11) (33. Ra7 $1 $16) 33... Be6 {[%emt 0:00:39]} 34. Nxe5 {[%emt 0:02:10] Hoping for Qxb5.} Rxd5 {[%emt 0:00:21]} 35. Qxb5 {[%emt 0:00:32] 0x0.0008433aafc1dp-1022s more active pieces.} Rxb5 {[%emt 0:00:03]} 36. Nc6 {[%emt 0:01:32]} Ra8 {[%emt 0:02:06]} 37. Nd4 {[%emt 0:01:19]} Bxa5 {[%emt 0:00:31]} 38. Nxb5 {[%emt 0:01:25]} Bxb6 {[%emt 0:00:02]} 39. Rb7 {[%emt 0:00:19]} axb5 {[%emt 0:00:08]} 40. Rxb6 {[%emt 0:00:00]} Bxb3 {[%emt 0:00:00]} 41. Rxb5 {[%emt 0:05:16]} (41. Re1 $16) 41... Bc4 $1 {[%emt 0:00:12][%csl LRb5,LRf1] Weighted Error Value: White=0.20 (precise) /Black=0.17 (very precise)} 1/2-1/2

[Event "Croatian Team Cup Final 2022"]
[Site "Vodice"]
[Date "2022.05.22"]
[Round "6.15"]
[White "Kovacevic, Blazimir"]
[Black "Tomas, Ante"]
[Result "1-0"]
[ECO "A07"]
[WhiteElo "2401"]
[BlackElo "2117"]
[Annotator "TA"]
[PlyCount "141"]
[EventDate "2022.05.18"]
[EventType "team-tourn"]
[EventCountry "CRO"]
[SourceTitle "playchess.com"]
[Source "ChessBase"]
[SourceQuality "1"]
[TimeControl "40/5400+30:1800+30"]

{[%evp 10,141,5,4,49,51,60,48,60,43,54,52,55,44,58,49,54,47,51,41,53,45,52,38,49,55,85,76,116,112,131,82,73,79,87,45,85,33,30,0,0,0,81,39,25,35,32,22,41,45,45,43,35,18,48,41,73,41,67,54,62,43,54,49,41,0,52,30,91,62,76,20,61,0,93,68,76,68,159,156,139,143,133,159,145,152,195,192,193,185,149,156,277,221,218,203,439,418,361,281,338,338,338,331,336,304,267,269,325,325,178,152,408,405,529,487,495,455,495,495,481,451,671,777,769,677,1270,632,1174,882,1934,1408,29984,29985]} 1. Nf3 {[%emt 0:00:03]} d5 {[%emt 0:00:10]} 2. g3 {[%emt 0:00:11]} Nf6 {[%emt 0:03:13]} 3. Bg2 {[%emt 0:00:07]} c6 {[%emt 0:00:41]} 4. O-O {[%emt 0:00:35]} Bf5 {[%emt 0:00:29]} 5. d3 {[%emt 0:02:40]} e6 {[%emt 0:02:29]} 6. Nh4 {[%emt 0:00:08]} Bg6 {[%emt 0:03:46] A07: Réti Opening: New York and Capablanca Systems.} 7. Nxg6 $1 {[%emt 0:01:18] 7.Nxg6 is better than 7.Nd2.} hxg6 {[%emt 0:00:02]} 8. Nd2 {[%emt 0:01:20]} Be7 {[%emt 0:01:37] White is slightly better.} 9. e4 {[%emt 0:00:06]} dxe4 {[%emt 0:00:49]} 10. dxe4 {[%emt 0:00:24]} Nbd7 {[%emt 0:02:22]} 11. Qe2 {[%emt 0:01:40]} Qa5 {[%emt 0:05:48] [#]} 12. Rd1 $146 {[%emt 0:05:43]} ({Predecessor:} 12. a4 Rd8 13. Nc4 Qh5 14. Qxh5 Rxh5 15. Bf3 Rc5 16. b3 Ne5 17. Nxe5 Rxe5 18. Bf4 {1-0 (60) Lomsadze,D (2348)-Abdullahoglu,D (1897) Konya 2018}) 12... O-O {[%emt 0:08:24]} 13. Nb3 {[%emt 0:05:11]} Qc7 {[%emt 0:00:52]} 14. Be3 {[%emt 0:05:34]} Rfd8 {[%emt 0:01:18]} 15. a4 {[%emt 0:01:05]} Nf8 {[%emt 0:09:19]} 16. Nd2 {[%emt 0:07:27]} b6 {[%emt 0:22:56]} 17. c3 {[%emt 0:02:34][%cal Bc2c3,Bc3c4][%mdl 32]} Rd7 {[%emt 0:01:26]} 18. Rdb1 {[%emt 0:08:09]} Rad8 {[%emt 0:02:11]} 19. Nc4 {[%emt 0:01:39]} Qc8 {[%emt 0:12:41]} 20. a5 {[%emt 0:07:37]} (20. b4 $142) 20... b5 $16 {[%emt 0:00:09]} 21. Ne5 {[%emt 0:00:12]} Rc7 {[%emt 0:00:19]} 22. c4 {[%emt 0:04:11]} b4 {[%emt 0:05:25]} 23. Nd3 {[%emt 0:05:04]} (23. c5 $16) 23... Ng4 $1 $14 {[%emt 0:03:05]} 24. Bf4 {[%emt 0:06:39]} Rcd7 {[%emt 0:01:00]} 25. Rd1 {[%emt 0:09:04]} f6 {[%emt 0:03:26]} 26. Bh3 {[%emt 0:02:55]} Nh6 {[%emt 0:00:22]} 27. Be3 $36 {[%emt 0:00:33][%mdl 2048] White fights for an advantage.} c5 {[%emt 0:05:09]} 28. b3 {[%emt 0:01:58]} a6 {[%emt 0:01:52]} 29. f4 {[%emt 0:07:44]} Nf7 {[%emt 0:00:57]} 30. Bf1 {[%emt 0:02:53]} (30. f5 {is more complex.} Qc6 31. Bf2 Ng5 32. Bg2) 30... Qc7 {[%emt 0:00:59]} 31. h4 {[%emt 0:02:58]} Nh6 {[%emt 0:00:17]} (31... g5 {feels hotter.} 32. hxg5 fxg5 33. Bh3 gxf4 34. gxf4 g5) 32. Bh3 {[%emt 0:01:21]} Nf7 {[%emt 0:00:07]} 33. Rd2 {[%emt 0:03:21]} Nh6 {[%emt 0:00:36]} 34. Raa2 {[%emt 0:00:15]} Qc6 {[%emt 0:00:12]} 35. Bf2 {[%emt 0:02:16]} Qc7 {[%emt 0:01:43]} 36. Qf3 {[%emt 0:01:20]} Qc6 {[%emt 0:01:04]} 37. Qe2 {[%emt 0:00:43]} Qc7 $1 {[%emt 0:00:07]} 38. Kf1 {[%emt 0:00:43]} Qc6 {[%emt 0:01:03]} (38... g5 $11 {keeps the balance.}) 39. Ke1 {[%emt 0:00:40]} Qc7 {[%emt 0:00:53]} 40. Qf3 {[%emt 0:00:00]} ({White should play} 40. Kd1 $16) 40... Qc6 {[%emt 0:00:00]} 41. Ke2 {[%emt 0:02:51]} ({White should try} 41. Bg2 $14) 41... Kf7 {[%emt 0:06:31]} (41... Nf5 $11) 42. g4 {[%emt 0:05:40] Active counter play!} Kg8 {[%emt 0:00:14]} 43. Bg2 {[%emt 0:02:55]} Nf7 {[%emt 0:02:07]} (43... e5 $14) 44. e5 $16 {[%emt 0:03:48] The board is on fire.} Qc7 {[%emt 0:01:50][%cal Rf6e5]} 45. Qc6 {[%emt 0:03:35]} Qxc6 {[%emt 0:05:52]} 46. Bxc6 {[%emt 0:00:04] A strong pair of Bishops.} Rc7 {[%emt 0:00:11]} 47. Bf3 {[%emt 0:04:52]} g5 {[%emt 0:06:41]} 48. hxg5 {[%emt 0:03:40]} fxe5 {[%emt 0:00:15]} 49. Nxe5 {[%emt 0:00:13]} Nxe5 {[%emt 0:00:42]} 50. fxe5 {[%emt 0:00:31] Black must now prevent Rxd8.} Bxg5 {[%emt 0:07:05]} (50... Rxd2+ $16 51. Rxd2 (51. Kxd2 Ng6 $11) 51... Ng6) 51. Rd6 {[%emt 0:00:19]} Ng6 {[%emt 0:01:20]} 52. Bg3 {[%emt 0:02:30]} ({Worse is} 52. Rxa6 Nf4+ 53. Ke1 (53. Kf1 Rd3 $15) 53... Nd3+ 54. Kf1 Nc1 $11) 52... Re8 $2 {[%emt 0:03:39]} (52... Rxd6 53. exd6 Rf7) 53. Rxa6 $18 {[%emt 0:00:37]} Nf4+ {[%emt 0:00:41]} 54. Bxf4 {[%emt 0:03:13]} Bxf4 {[%emt 0:00:00]} 55. Ra8 {[%emt 0:00:19]} Rxa8 {[%emt 0:00:15]} 56. Bxa8 {[%emt 0:00:04][%mdl 4096] Endgame KRB-KRB} Ra7 {[%emt 0:00:31]} 57. Bc6 {[%emt 0:00:32]} Bxe5 {[%emt 0:00:09]} 58. a6 {[%emt 0:00:04]} Kf7 {[%emt 0:01:26]} 59. Bb7 {[%emt 0:00:06]} Kf6 {[%emt 0:00:27]} (59... Ke7 $142 60. Ke3 Bc3) 60. Ra5 {[%emt 0:01:18]} Bd4 {[%emt 0:00:05] Black cannot hold the game after this.} (60... Bd6 $16 61. Kd2 Ke7) 61. Rb5 {[%emt 0:00:31]} Ke5 {[%emt 0:00:51]} 62. Kf3 {[%emt 0:01:44]} Bg1 {[%emt 0:00:32] [#]} 63. Rb6 $1 {[%emt 0:01:18]} Kd4 {[%emt 0:00:01]} 64. Rxe6 {[%emt 0:00:47]} Kc3 {[%emt 0:00:08]} 65. Re8 {[%emt 0:00:48]} Bh2 {[%emt 0:01:03]} (65... Kxb3 $142 66. Ra8 Rxa6 67. Bxa6 Kc3) 66. Re3+ {[%emt 0:00:41]} Kd4 {[%emt 0:00:31]} 67. Ke2 {[%emt 0:00:26]} Bg1 {[%emt 0:00:57]} 68. Rd3+ {[%emt 0:00:11]} Ke5 {[%emt 0:00:07]} 69. Rd8 {[%emt 0:00:20] [#] And now Ra8 would win.} Bh2 {[%emt 0:00:56]} 70. Ra8 {[%emt 0:01:16]} Rxa8 {[%emt 0:00:19]} 71. Bxa8 {[%emt 0:00:05] Weighted Error Value: White=0.15 (very precise) /Black=0.28 (precise)} 1-0